[Event "Swedish Chess Championship 2019: Weekend 1"]
[Site "Stiga Sports Arena, Arenatorget 1, Eskilstuna, Sweden"]
[Date "2019.07.07"]
[Round "5.12"]
[White "Johansson, Sven"]
[Black "Nyberg, Stefan"]
[Result "1-0"]
[TimeControl "90 minutes + 30 seconds per move from move one"]
[WhiteFideId "1716301"]
[BlackFideId "1737171"]
[WhiteElo "1927"]
[BlackElo "1921"]

1. d4 {[%clk 01:30:57]} {[%emt 00:00:02]} d5 {[%clk 01:30:51]} {[%emt
00:00:09]} 2. Bf4 {[%clk 01:31:20]} {[%emt 00:00:08]} Nf6 {[%clk 01:30:52]}
{[%emt 00:00:29]} 3. e3 {[%clk 01:31:44]} {[%emt 00:00:06]} e6 {[%clk
01:31:13]} {[%emt 00:00:10]} 4. c3 {[%clk 01:31:55]} {[%emt 00:00:19]} Be7
{[%clk 01:31:08]} {[%emt 00:00:34]} 5. Nf3 {[%clk 01:31:50]} {[%emt 00:00:35]}
O-O {[%clk 01:31:01]} {[%emt 00:00:37]} 6. Nbd2 {[%clk 01:32:10]} {[%emt
00:00:11]} b6 {[%clk 01:28:37]} {[%emt 00:02:55]} 7. Bd3 {[%clk 01:32:22]}
{[%emt 00:00:17]} Ba6 {[%clk 01:28:10]} {[%emt 00:00:57]} 8. Bxa6 {[%clk
01:31:41]} {[%emt 00:01:11]} Nxa6 {[%clk 01:28:37]} {[%emt 00:00:03]} 9. Qe2
{[%clk 01:31:36]} {[%emt 00:00:35]} Nb8 {[%clk 01:28:51]} {[%emt 00:00:17]} 10.
Ne5 {[%clk 01:29:52]} {[%emt 00:02:14]} Nfd7 {[%clk 01:28:07]} {[%emt
00:01:13]} 11. Ndf3 {[%clk 01:28:30]} {[%emt 00:01:52]} f6 {[%clk 01:25:46]}
{[%emt 00:02:51]} 12. Nd3 {[%clk 01:27:27]} {[%emt 00:01:34]} Bd6 {[%clk
01:09:26]} {[%emt 00:16:50]} 13. O-O {[%clk 01:19:58]} {[%emt 00:07:59]} Re8
{[%clk 00:59:51]} {[%emt 00:10:05]} 14. Rad1 {[%clk 01:07:50]} {[%emt
00:12:38]} Nf8 {[%clk 00:54:20]} {[%emt 00:06:01]} 15. Rfe1 {[%clk 01:05:22]}
{[%emt 00:02:58]} Ng6 {[%clk 00:51:07]} {[%emt 00:03:42]} 16. Bg3 {[%clk
01:04:08]} {[%emt 00:01:43]} Bxg3 {[%clk 00:47:19]} {[%emt 00:04:19]} 17. hxg3
{[%clk 01:04:31]} {[%emt 00:00:07]} Qe7 {[%clk 00:42:16]} {[%emt 00:05:33]} 18.
e4 {[%clk 01:02:22]} {[%emt 00:02:40]} Nd7 {[%clk 00:38:08]} {[%emt 00:04:38]}
19. Qc2 {[%clk 00:56:52]} {[%emt 00:06:00]} Qf7 {[%clk 00:35:00]} {[%emt
00:03:38]} 20. Re2 {[%clk 00:31:48]} {[%emt 00:25:34]} c5 {[%clk 00:11:13]}
{[%emt 00:24:16]} 21. exd5 {[%clk 00:25:43]} {[%emt 00:06:36]} exd5 {[%clk
00:11:31]} {[%emt 00:00:12]} 22. Rde1 {[%clk 00:25:33]} {[%emt 00:00:39]} Rxe2
{[%clk 00:08:46]} {[%emt 00:03:15]} 23. Qxe2 {[%clk 00:22:34]} {[%emt
00:03:29]} Kf8 {[%clk 00:08:53]} {[%emt 00:00:23]} 24. Qe6 {[%clk 00:18:38]}
{[%emt 00:04:27]} Qxe6 {[%clk 00:05:35]} {[%emt 00:03:48]} 25. Rxe6 {[%clk
00:18:52]} {[%emt 00:00:16]} Ne7 {[%clk 00:04:14]} {[%emt 00:01:50]} 26. Rd6
{[%clk 00:18:14]} {[%emt 00:01:08]} Ke8 {[%clk 00:03:56]} {[%emt 00:00:48]} 27.
Nf4 {[%clk 00:18:04]} {[%emt 00:00:40]} Nf8 {[%clk 00:02:47]} {[%emt 00:01:38]}
28. Nxd5 {[%clk 00:17:34]} {[%emt 00:01:01]} Nf5 {[%clk 00:02:26]} {[%emt
00:00:51]} 29. Nc7+ {[%clk 00:09:53]} {[%emt 00:08:10]} Ke7 {[%clk 00:02:47]}
{[%emt 00:00:08]} 30. Rd5 {[%clk 00:06:24]} {[%emt 00:04:00]} Rc8 {[%clk
00:02:42]} {[%emt 00:00:35]} 31. dxc5 {[%clk 00:04:38]} {[%emt 00:02:17]} Rxc7
{[%clk 00:01:45]} {[%emt 00:01:26]} 32. cxb6 {[%clk 00:04:23]} {[%emt
00:00:45]} axb6 {[%clk 00:01:56]} {[%emt 00:00:19]} 33. Rxf5 {[%clk 00:04:49]}
{[%emt 00:00:04]} Ne6 {[%clk 00:02:06]} {[%emt 00:00:19]} 34. Rb5 {[%clk
00:04:21]} {[%emt 00:00:59]} Rc6 {[%clk 00:01:34]} {[%emt 00:01:01]} 35. Nd4
{[%clk 00:03:29]} {[%emt 00:01:22]} Nxd4 {[%clk 00:02:00]} {[%emt 00:00:04]} 36.
cxd4 {[%clk 00:03:53]} {[%emt 00:00:06]} Rd6 {[%clk 00:02:03]} {[%emt
00:00:26]} 37. Kf1 {[%clk 00:03:42]} {[%emt 00:00:41]} Kd7 {[%clk 00:02:09]}
{[%emt 00:00:24]} 38. Ke2 {[%clk 00:04:00]} {[%emt 00:00:12]} Kc6 {[%clk
00:02:13]} {[%emt 00:00:25]} 39. Rb4 {[%clk 00:04:24]} {[%emt 00:00:07]} b5
{[%clk 00:02:04]} {[%emt 00:00:39]} 40. Kd3 {[%clk 00:04:31]} {[%emt 00:00:23]}
f5 {[%clk 00:01:50]} {[%emt 00:00:45]} 41. a4 {[%clk 00:04:27]} {[%emt
00:00:35]} bxa4 {[%clk 00:02:02]} {[%emt 00:00:18]} 42. Rxa4 {[%clk 00:04:46]}
{[%emt 00:00:11]} Kb6 {[%clk 00:01:43]} {[%emt 00:00:48]} 43. b4 {[%clk
00:03:18]} {[%emt 00:01:58]} Rd7 {[%clk 00:01:11]} {[%emt 00:01:02]} 44. Ra5
{[%clk 00:03:01]} {[%emt 00:00:46]} g6 {[%clk 00:01:23]} {[%emt 00:00:19]} 45.
Kc4 {[%clk 00:02:20]} {[%emt 00:01:11]} Rc7+ {[%clk 00:01:32]} {[%emt
00:00:21]} 46. Rc5 {[%clk 00:02:38]} {[%emt 00:00:13]} Ra7 {[%clk 00:01:57]}
{[%emt 00:00:05]} 47. d5 {[%clk 00:02:13]} {[%emt 00:00:54]} 1-0